[Event "*** Titled Tuesday Blitz"]
[Site "Chess.com"]
[Date "2019.01.01"]
[Round "3"]
[White "IngOscarArdila"]
[Black "P0ubelle"]
[Result "0-1"]
[WhiteElo "2066"]
[BlackElo "2205"]
[TimeControl "180+2"]
[EndTime "13:37:51 PST"]
[Termination "P0ubelle won on time"]

1. e4 {[%clk 0:03:01.9]} 1... e5 {[%clk 0:02:59.4]} 2. Nf3 {[%clk 0:03:02.3]}
2... Nc6 {[%clk 0:03:00.2]} 3. Bb5 {[%clk 0:03:03.3]} 3... a6 {[%clk 0:03:01.5]}
4. Ba4 {[%clk 0:03:04.2]} 4... d6 {[%clk 0:03:03.2]} 5. d3 {[%clk 0:03:05.1]}
5... g6 {[%clk 0:03:01.6]} 6. c3 {[%clk 0:03:06]} 6... Bg7 {[%clk 0:03:00.2]} 7.
O-O {[%clk 0:03:06.9]} 7... Nf6 {[%clk 0:03:01.3]} 8. Nbd2 {[%clk 0:03:06]} 8...
O-O {[%clk 0:03:02.3]} 9. h3 {[%clk 0:03:06.4]} 9... h6 {[%clk 0:03:03.4]} 10.
Re1 {[%clk 0:03:02.4]} 10... Ne7 {[%clk 0:03:02.8]} 11. Nf1 {[%clk 0:02:59.2]}
11... Nh5 {[%clk 0:03:02.2]} 12. g4 {[%clk 0:02:56]} 12... Nf4 {[%clk
0:02:58.8]} 13. Bxf4 {[%clk 0:02:56.2]} 13... exf4 {[%clk 0:02:59.9]} 14. d4
{[%clk 0:02:53.4]} 14... h5 {[%clk 0:03:00]} 15. N1h2 {[%clk 0:02:52.8]} 15...
hxg4 {[%clk 0:02:52.9]} 16. hxg4 {[%clk 0:02:40]} 16... g5 {[%clk 0:02:34.7]}
17. Nxg5 {[%clk 0:02:25.1]} 17... Ng6 {[%clk 0:02:35]} 18. Ngf3 {[%clk
0:02:19.2]} 18... Bf6 {[%clk 0:02:36]} 19. Bc2 {[%clk 0:02:13.3]} 19... Kg7
{[%clk 0:02:32.5]} 20. e5 {[%clk 0:02:13.2]} 20... Bg5 {[%clk 0:02:32]} 21. Bf5
{[%clk 0:01:42]} 21... Rh8 {[%clk 0:02:23.7]} 22. Qd3 {[%clk 0:01:29.8]} 22...
Nh4 {[%clk 0:01:23.7]} 23. Bxc8 {[%clk 0:01:08.6]} 23... Rxc8 {[%clk 0:01:22.4]}
24. e6 {[%clk 0:00:41.2]} 24... Qf6 {[%clk 0:01:03.3]} 25. Nxh4 {[%clk
0:00:32.7]} 25... Bxh4 {[%clk 0:01:03.2]} 26. Nf3 {[%clk 0:00:21.3]} 26... fxe6
{[%clk 0:01:02.7]} 27. Qe4 {[%clk 0:00:19.2]} 27... Rce8 {[%clk 0:00:59.7]} 28.
Kf1 {[%clk 0:00:20]} 28... Qg6 {[%clk 0:00:56.2]} 29. Qxg6+ {[%clk 0:00:20.4]}
29... Kxg6 {[%clk 0:00:57.7]} 30. Ke2 {[%clk 0:00:20.7]} 30... Bg5 {[%clk
0:00:58.4]} 31. Rh1 {[%clk 0:00:21]} 31... e5 {[%clk 0:00:57.5]} 32. dxe5 {[%clk
0:00:19.9]} 32... dxe5 {[%clk 0:00:58.3]} 33. Nxg5 {[%clk 0:00:15.1]} 33... Kxg5
{[%clk 0:00:59.4]} 34. f3 {[%clk 0:00:16.2]} 34... e4 {[%clk 0:00:59]} 35. Rxh8
{[%clk 0:00:14.7]} 35... exf3+ {[%clk 0:00:59.8]} 36. Kxf3 {[%clk 0:00:15.7]}
36... Rxh8 {[%clk 0:01:01.5]} 37. Rg1 {[%clk 0:00:10.7]} 37... Rh3+ {[%clk
0:01:02.3]} 38. Kf2 {[%clk 0:00:09.3]} 38... Rh2+ {[%clk 0:01:01.8]} 39. Kf3
{[%clk 0:00:10.2]} 39... Rxb2 {[%clk 0:01:02.7]} 40. Rh1 {[%clk 0:00:11.4]}
40... Rxa2 {[%clk 0:00:58.4]} 41. Rh5+ {[%clk 0:00:12.5]} 41... Kg6 {[%clk
0:00:59.6]} 42. Kxf4 {[%clk 0:00:13.8]} 42... Ra4+ {[%clk 0:00:57.4]} 43. Kf3
{[%clk 0:00:13.6]} 43... Rc4 {[%clk 0:00:58.6]} 44. Rd5 {[%clk 0:00:11.2]} 44...
Rxc3+ {[%clk 0:00:59.5]} 45. Kf4 {[%clk 0:00:12.6]} 45... b5 {[%clk 0:00:59.6]}
46. Rd7 {[%clk 0:00:08.5]} 46... a5 {[%clk 0:01:00.1]} 47. Rd8 {[%clk
0:00:09.3]} 47... a4 {[%clk 0:01:00.9]} 48. Rb8 {[%clk 0:00:09.5]} 48... Rb3
{[%clk 0:01:00.5]} 49. Rb7 {[%clk 0:00:10]} 49... a3 {[%clk 0:01:00]} 50. Rxc7
{[%clk 0:00:10.7]} 50... a2 {[%clk 0:01:01.4]} 51. Rc6+ {[%clk 0:00:12.3]} 51...
Kf7 {[%clk 0:01:01.4]} 52. Ra6 {[%clk 0:00:13.1]} 52... Rb2 {[%clk 0:01:02.4]}
53. g5 {[%clk 0:00:12.2]} 53... b4 {[%clk 0:01:01.8]} 54. g6+ {[%clk 0:00:12.7]}
54... Kg7 {[%clk 0:01:03.1]} 55. Ke4 {[%clk 0:00:14.2]} 55... b3 {[%clk
0:01:03.8]} 56. Kd3 {[%clk 0:00:14.5]} 56... Rb1 {[%clk 0:01:04.9]} 57. Kc3
{[%clk 0:00:10.8]} 57... a1=Q+ {[%clk 0:01:04.9]} 0-1

[Event "*** Titled Tuesday Blitz"]
[Site "Chess.com"]
[Date "2019.01.01"]
[Round "3"]
[White "VladDobrov"]
[Black "Arman_Hakemi"]
[Result "1-0"]
[WhiteElo "2835"]
[BlackElo "2466"]
[TimeControl "180+2"]
[EndTime "13:37:57 PST"]
[Termination "VladDobrov won on time"]

1. d4 {[%clk 0:03:01.9]} 1... Nf6 {[%clk 0:02:59.6]} 2. c4 {[%clk 0:02:59.1]}
2... g6 {[%clk 0:02:59.7]} 3. g3 {[%clk 0:02:59.5]} 3... Bg7 {[%clk 0:02:59.5]}
4. Bg2 {[%clk 0:02:59.7]} 4... d5 {[%clk 0:03:00.1]} 5. cxd5 {[%clk 0:02:58.4]}
5... Nxd5 {[%clk 0:03:01]} 6. Nf3 {[%clk 0:03:00.3]} 6... O-O {[%clk 0:03:01.8]}
7. O-O {[%clk 0:03:00.4]} 7... Nc6 {[%clk 0:03:02.7]} 8. e3 {[%clk 0:02:59.6]}
8... Bf5 {[%clk 0:03:00.3]} 9. a3 {[%clk 0:02:45.5]} 9... Qd7 {[%clk 0:02:35.8]}
10. Re1 {[%clk 0:02:41.5]} 10... Bh3 {[%clk 0:02:35]} 11. Bh1 {[%clk 0:02:34.6]}
11... Rad8 {[%clk 0:02:15.3]} 12. Nc3 {[%clk 0:01:34.8]} 12... Nb6 {[%clk
0:02:08.4]} 13. Qb3 {[%clk 0:01:19.3]} 13... e5 {[%clk 0:01:32.4]} 14. d5 {[%clk
0:01:11.2]} 14... Na5 {[%clk 0:01:13]} 15. Qb4 {[%clk 0:01:07.5]} 15... Nac4
{[%clk 0:01:09.1]} 16. e4 {[%clk 0:01:02.8]} 16... h6 {[%clk 0:00:57.6]} 17. a4
{[%clk 0:00:52.4]} 17... a5 {[%clk 0:00:51.6]} 18. Qb3 {[%clk 0:00:53.1]} 18...
f5 {[%clk 0:00:41.5]} 19. d6 {[%clk 0:00:36.6]} 19... Kh8 {[%clk 0:00:25.7]} 20.
dxc7 {[%clk 0:00:37.7]} 20... Qxc7 {[%clk 0:00:26.9]} 21. Nh4 {[%clk 0:00:37.8]}
21... Qf7 {[%clk 0:00:25.5]} 22. Nd5 {[%clk 0:00:37.3]} 22... Nxd5 {[%clk
0:00:25.9]} 23. Qxc4 {[%clk 0:00:38.3]} 23... g5 {[%clk 0:00:22.5]} 24. Nxf5
{[%clk 0:00:37.5]} 24... Bxf5 {[%clk 0:00:22]} 25. exf5 {[%clk 0:00:37.6]} 25...
Qxf5 {[%clk 0:00:23]} 26. Qe2 {[%clk 0:00:30.3]} 26... Nf6 {[%clk 0:00:15.2]}
27. Be3 {[%clk 0:00:30.5]} 27... Ng4 {[%clk 0:00:15.8]} 28. Bc5 {[%clk
0:00:27.3]} 28... Rf7 {[%clk 0:00:08.9]} 29. Be4 {[%clk 0:00:27.9]} 29... Qe6
{[%clk 0:00:10.1]} 30. Rad1 {[%clk 0:00:28.6]} 30... Rc8 {[%clk 0:00:11.4]} 31.
Bd5 {[%clk 0:00:27.1]} 31... Qf5 {[%clk 0:00:07.4]} 32. Bxf7 {[%clk 0:00:28.1]}
32... Rxc5 {[%clk 0:00:08.4]} 33. Rd8+ {[%clk 0:00:28.3]} 33... Kh7 {[%clk
0:00:09.2]} 34. Bg8+ {[%clk 0:00:28.9]} 34... Kg6 {[%clk 0:00:09.5]} 35. Ba2
{[%clk 0:00:20.5]} 35... Nf6 {[%clk 0:00:03.4]} 36. Bb1 {[%clk 0:00:21.1]} 36...
e4 {[%clk 0:00:04.7]} 37. Bxe4 {[%clk 0:00:20.8]} 37... Nxe4 {[%clk 0:00:04.9]}
38. Qxe4 {[%clk 0:00:22.7]} 38... Qxe4 {[%clk 0:00:06.1]} 39. Rxe4 {[%clk
0:00:24.6]} 39... Bxb2 {[%clk 0:00:07.2]} 40. Re6+ {[%clk 0:00:22.9]} 40... Kh5
{[%clk 0:00:07.5]} 41. Rb6 {[%clk 0:00:18.8]} 41... Be5 {[%clk 0:00:04]} 42.
Rxb7 {[%clk 0:00:15.7]} 42... Rc2 {[%clk 0:00:04.8]} 43. Rb5 {[%clk 0:00:15.4]}
43... Bc7 {[%clk 0:00:04.7]} 44. Rd7 {[%clk 0:00:14.4]} 44... Rc1+ {[%clk
0:00:04.5]} 45. Kg2 {[%clk 0:00:15.4]} 45... Kg4 {[%clk 0:00:05.8]} 46. h3+
{[%clk 0:00:15.8]} 46... Kh5 {[%clk 0:00:07.3]} 47. Rg7 {[%clk 0:00:15.5]} 47...
Be5 {[%clk 0:00:07]} 48. g4+ {[%clk 0:00:16.2]} 48... Kh4 {[%clk 0:00:08.1]} 49.
Rg6 {[%clk 0:00:17.6]} 1-0

[Event "*** Titled Tuesday Blitz"]
[Site "Chess.com"]
[Date "2019.01.01"]
[Round "3"]
[White "ahmadzada13"]
[Black "xamax2000"]
[Result "0-1"]
[WhiteElo "2815"]
[BlackElo "2500"]
[TimeControl "180+2"]
[EndTime "13:38:02 PST"]
[Termination "xamax2000 won on time"]

1. e4 {[%clk 0:03:01.9]} 1... e5 {[%clk 0:02:59.7]} 2. Nf3 {[%clk 0:03:03]} 2...
Nc6 {[%clk 0:02:56.3]} 3. Bb5 {[%clk 0:03:03.9]} 3... a6 {[%clk 0:02:52.7]} 4.
Ba4 {[%clk 0:03:04.1]} 4... Nf6 {[%clk 0:02:53.8]} 5. O-O {[%clk 0:03:04.3]}
5... Bc5 {[%clk 0:02:51.5]} 6. d3 {[%clk 0:03:01.3]} 6... b5 {[%clk 0:02:49.1]}
7. Bb3 {[%clk 0:03:01.3]} 7... d6 {[%clk 0:02:51]} 8. a4 {[%clk 0:03:00]} 8...
Rb8 {[%clk 0:02:48.8]} 9. Nc3 {[%clk 0:03:00.9]} 9... h6 {[%clk 0:02:43.2]} 10.
Nd5 {[%clk 0:03:01.2]} 10... O-O {[%clk 0:02:20.6]} 11. c3 {[%clk 0:03:00.5]}
11... Nxd5 {[%clk 0:02:15.7]} 12. Bxd5 {[%clk 0:03:02.4]} 12... Ne7 {[%clk
0:02:16.2]} 13. Ba2 {[%clk 0:03:00.4]} 13... Ng6 {[%clk 0:02:16.7]} 14. d4
{[%clk 0:03:01.2]} 14... Bb6 {[%clk 0:02:17.7]} 15. h3 {[%clk 0:03:00.5]} 15...
Qf6 {[%clk 0:02:17.3]} 16. Be3 {[%clk 0:02:56.4]} 16... Be6 {[%clk 0:02:09.7]}
17. Bxe6 {[%clk 0:02:47.3]} 17... fxe6 {[%clk 0:02:11.6]} 18. axb5 {[%clk
0:02:48]} 18... axb5 {[%clk 0:02:12.1]} 19. Qb3 {[%clk 0:02:47.3]} 19... Kh8
{[%clk 0:02:06.1]} 20. Ra6 {[%clk 0:02:37.3]} 20... Nf4 {[%clk 0:01:37.9]} 21.
Bxf4 {[%clk 0:02:34.7]} 21... Qxf4 {[%clk 0:01:37.9]} 22. Qxe6 {[%clk
0:02:25.1]} 22... exd4 {[%clk 0:01:29.5]} 23. cxd4 {[%clk 0:02:09.5]} 23... Rbe8
{[%clk 0:01:22.9]} 24. Qg6 {[%clk 0:02:10]} 24... Rxe4 {[%clk 0:01:18.9]} 25.
Rfa1 {[%clk 0:01:58]} 25... Qf5 {[%clk 0:01:10.6]} 26. Qxf5 {[%clk 0:01:39.5]}
26... Rxf5 {[%clk 0:01:12.5]} 27. Ra8+ {[%clk 0:01:39.3]} 27... Kh7 {[%clk
0:01:11]} 28. Rc8 {[%clk 0:01:38]} 28... Re2 {[%clk 0:01:09.8]} 29. Raa8 {[%clk
0:01:37.5]} 29... Rf4 {[%clk 0:01:01.4]} 30. h4 {[%clk 0:01:21.8]} 30... Kg6
{[%clk 0:00:44.3]} 31. Rg8 {[%clk 0:01:20]} 31... Bxd4 {[%clk 0:00:39.6]} 32.
h5+ {[%clk 0:00:49.1]} 32... Kxh5 {[%clk 0:00:37.3]} 33. Nxd4 {[%clk 0:00:50.1]}
33... Rxd4 {[%clk 0:00:29]} 34. Rxg7 {[%clk 0:00:51]} 34... Rd1+ {[%clk
0:00:13]} 35. Kh2 {[%clk 0:00:52]} 35... Rxf2 {[%clk 0:00:14.9]} 36. Rxc7 {[%clk
0:00:38.3]} 36... Rxb2 {[%clk 0:00:15]} 37. Rg8 {[%clk 0:00:37.7]} 37... Rd4
{[%clk 0:00:14.7]} 38. Rf7 {[%clk 0:00:30.1]} 38... Rh4+ {[%clk 0:00:15.3]} 39.
Kg1 {[%clk 0:00:26.8]} 39... Rg4 {[%clk 0:00:14.5]} 40. Rf5+ {[%clk 0:00:15.9]}
40... Kh4 {[%clk 0:00:16]} 41. Rxg4+ {[%clk 0:00:11.2]} 41... Kxg4 {[%clk
0:00:17.9]} 42. Rf6 {[%clk 0:00:08.8]} 42... d5 {[%clk 0:00:16.7]} 43. Rxh6
{[%clk 0:00:09]} 43... Kf4 {[%clk 0:00:18.2]} 44. Rd6 {[%clk 0:00:10]} 44... Ke5
{[%clk 0:00:19.3]} 45. Rd8 {[%clk 0:00:11.6]} 45... b4 {[%clk 0:00:21]} 46. Kf1
{[%clk 0:00:12.8]} 46... b3 {[%clk 0:00:22.3]} 47. Rb8 {[%clk 0:00:13.2]} 47...
Rb1+ {[%clk 0:00:18.8]} 48. Kf2 {[%clk 0:00:13.4]} 48... b2 {[%clk 0:00:19.7]}
49. Rb4 {[%clk 0:00:13.2]} 49... d4 {[%clk 0:00:20.6]} 50. Rb5+ {[%clk
0:00:09.3]} 50... Kd6 {[%clk 0:00:21.3]} 51. Rb3 {[%clk 0:00:07.3]} 51... Kc5
{[%clk 0:00:21.6]} 52. g4 {[%clk 0:00:08.9]} 52... Rh1 {[%clk 0:00:21.6]} 0-1

[Event "*** Titled Tuesday Blitz"]
[Site "Chess.com"]
[Date "2019.01.01"]
[Round "3"]
[White "vladimirdamjanovic"]
[Black "BlackBoarder"]
[Result "1-0"]
[WhiteElo "2609"]
[BlackElo "2554"]
[TimeControl "180+2"]
[EndTime "13:38:12 PST"]
[Termination "vladimirdamjanovic won by resignation"]

1. d4 {[%clk 0:03:00.7]} 1... Nf6 {[%clk 0:02:59.3]} 2. Nf3 {[%clk 0:03:01.2]}
2... e6 {[%clk 0:02:59.9]} 3. c4 {[%clk 0:03:01.7]} 3... d5 {[%clk 0:03:00.1]}
4. Nc3 {[%clk 0:03:00.7]} 4... Bb4 {[%clk 0:02:59.7]} 5. Bg5 {[%clk 0:02:58.3]}
5... h6 {[%clk 0:03:00.5]} 6. Bh4 {[%clk 0:02:56.3]} 6... c5 {[%clk 0:02:57.7]}
7. e3 {[%clk 0:02:37.3]} 7... cxd4 {[%clk 0:02:55.4]} 8. exd4 {[%clk 0:02:37.2]}
8... Nc6 {[%clk 0:02:52.9]} 9. cxd5 {[%clk 0:02:32.9]} 9... Qxd5 {[%clk
0:02:45.9]} 10. Bxf6 {[%clk 0:02:31.9]} 10... gxf6 {[%clk 0:02:47.8]} 11. Be2
{[%clk 0:02:12.6]} 11... b6 {[%clk 0:02:44.3]} 12. a3 {[%clk 0:02:04.6]} 12...
Bxc3+ {[%clk 0:02:45.3]} 13. bxc3 {[%clk 0:02:06.5]} 13... Bb7 {[%clk
0:02:46.5]} 14. c4 {[%clk 0:01:35.9]} 14... Qa5+ {[%clk 0:02:41.3]} 15. Qd2
{[%clk 0:01:36.3]} 15... Qxd2+ {[%clk 0:02:39.2]} 16. Kxd2 {[%clk 0:01:38.2]}
16... O-O-O {[%clk 0:02:38.2]} 17. Kc3 {[%clk 0:01:35.7]} 17... Rhg8 {[%clk
0:02:37.8]} 18. g3 {[%clk 0:01:31.8]} 18... f5 {[%clk 0:02:16.8]} 19. Rhd1
{[%clk 0:01:25.9]} 19... Rd7 {[%clk 0:02:14.3]} 20. Ne5 {[%clk 0:01:23.5]} 20...
Nxe5 {[%clk 0:02:09.5]} 21. dxe5 {[%clk 0:01:25.4]} 21... Rxd1 {[%clk
0:01:59.3]} 22. Rxd1 {[%clk 0:01:27.3]} 22... f4 {[%clk 0:01:53]} 23. gxf4
{[%clk 0:01:23.8]} 23... Rg2 {[%clk 0:01:52.9]} 24. Bh5 {[%clk 0:01:22.6]} 24...
Rxf2 {[%clk 0:01:21.7]} 25. Bxf7 {[%clk 0:01:21.9]} 25... Rxf4 {[%clk
0:01:22.9]} 26. Bxe6+ {[%clk 0:01:22.5]} 26... Kb8 {[%clk 0:01:20.4]} 27. Rd8+
{[%clk 0:01:01.6]} 27... Kc7 {[%clk 0:01:21.4]} 28. Rd7+ {[%clk 0:01:03]} 28...
Kb8 {[%clk 0:01:23]} 29. Rf7 {[%clk 0:00:50.9]} 29... Rxf7 {[%clk 0:00:51.3]}
30. Bxf7 {[%clk 0:00:52.8]} 30... Kc7 {[%clk 0:00:52.9]} 31. Kd4 {[%clk
0:00:45.2]} 31... Kd7 {[%clk 0:00:53.8]} 32. Bd5 {[%clk 0:00:46.2]} 32... Ba6
{[%clk 0:00:54.7]} 33. Ke4 {[%clk 0:00:44]} 33... Ke7 {[%clk 0:00:51.5]} 34. Kf5
{[%clk 0:00:45]} 34... b5 {[%clk 0:00:39.3]} 35. c5 {[%clk 0:00:44.5]} 35...
Bc8+ {[%clk 0:00:39.8]} 36. e6 {[%clk 0:00:31.5]} 36... a5 {[%clk 0:00:39.4]}
37. Ke5 {[%clk 0:00:32.2]} 37... b4 {[%clk 0:00:40]} 38. axb4 {[%clk 0:00:34.1]}
38... axb4 {[%clk 0:00:41.4]} 39. c6 {[%clk 0:00:30.2]} 39... Ba6 {[%clk
0:00:34.1]} 40. c7 {[%clk 0:00:30.6]} 40... Bc8 {[%clk 0:00:34.1]} 41. h4 {[%clk
0:00:21.5]} 41... Ba6 {[%clk 0:00:32.9]} 42. Ba2 {[%clk 0:00:20.5]} 42... Bc8
{[%clk 0:00:33]} 43. Bb3 {[%clk 0:00:21.6]} 43... Bb7 {[%clk 0:00:32.4]} 44. Kf5
{[%clk 0:00:07.1]} 44... Bc8 {[%clk 0:00:13.3]} 45. Kg6 {[%clk 0:00:06.2]} 45...
Kd6 {[%clk 0:00:14.6]} 46. Kf7 {[%clk 0:00:06.1]} 46... Kxc7 {[%clk 0:00:11.5]}
47. e7 {[%clk 0:00:07.4]} 47... Bd7 {[%clk 0:00:12.7]} 48. e8=Q {[%clk 0:00:08]}
48... Bxe8+ {[%clk 0:00:14]} 49. Kxe8 {[%clk 0:00:09.9]} 49... Kd6 {[%clk
0:00:15.2]} 50. Kf7 {[%clk 0:00:11.2]} 50... h5 {[%clk 0:00:13.4]} 51. Kg6
{[%clk 0:00:12.5]} 51... Ke7 {[%clk 0:00:14.9]} 52. Kxh5 {[%clk 0:00:11.9]}
52... Kf6 {[%clk 0:00:15.2]} 53. Kh6 {[%clk 0:00:12.6]} 53... Kf5 {[%clk
0:00:16.3]} 54. h5 {[%clk 0:00:13.2]} 54... Kf6 {[%clk 0:00:17.7]} 55. Kh7
{[%clk 0:00:14.3]} 55... Ke5 {[%clk 0:00:18.2]} 56. Kg7 {[%clk 0:00:14.9]} 56...
Kd4 {[%clk 0:00:19.3]} 57. h6 {[%clk 0:00:16.8]} 57... Kc3 {[%clk 0:00:20.8]}
58. Bf7 {[%clk 0:00:18.4]} 58... b3 {[%clk 0:00:21.7]} 59. Bxb3 {[%clk
0:00:18.8]} 59... Kxb3 {[%clk 0:00:23.3]} 60. h7 {[%clk 0:00:20.7]} 1-0

[Event "*** Titled Tuesday Blitz"]
[Site "Chess.com"]
[Date "2019.01.01"]
[Round "3"]
[White "Generalas"]
[Black "Saitama_Hero"]
[Result "1-0"]
[WhiteElo "2275"]
[BlackElo "2390"]
[TimeControl "180+2"]
[EndTime "13:38:13 PST"]
[Termination "Generalas won by resignation"]

1. e4 {[%clk 0:03:01.9]} 1... d6 {[%clk 0:02:59.8]} 2. d4 {[%clk 0:03:01.7]}
2... g6 {[%clk 0:03:01.7]} 3. Nc3 {[%clk 0:03:01.6]} 3... Bg7 {[%clk 0:03:03.6]}
4. f4 {[%clk 0:03:02.5]} 4... Nf6 {[%clk 0:03:03.3]} 5. Nf3 {[%clk 0:03:01.7]}
5... c5 {[%clk 0:03:03]} 6. d5 {[%clk 0:02:57.8]} 6... O-O {[%clk 0:03:01.8]} 7.
Be3 {[%clk 0:02:57.2]} 7... a6 {[%clk 0:02:52.2]} 8. a4 {[%clk 0:02:51.4]} 8...
Qa5 {[%clk 0:02:51.9]} 9. Bd3 {[%clk 0:02:46]} 9... c4 {[%clk 0:02:50.6]} 10.
Bxc4 {[%clk 0:02:36.6]} 10... Nxe4 {[%clk 0:02:51.4]} 11. O-O {[%clk 0:02:36.8]}
11... Nxc3 {[%clk 0:02:51.1]} 12. bxc3 {[%clk 0:02:38.3]} 12... Qxc3 {[%clk
0:02:52.2]} 13. Qe2 {[%clk 0:02:37.8]} 13... Bg4 {[%clk 0:02:41]} 14. Rab1
{[%clk 0:02:34.8]} 14... Nd7 {[%clk 0:01:49.2]} 15. Rxb7 {[%clk 0:02:32.6]}
15... Rfb8 {[%clk 0:01:46.7]} 16. Rfb1 {[%clk 0:02:15.6]} 16... Bxf3 {[%clk
0:01:41.6]} 17. gxf3 {[%clk 0:02:15.7]} 17... Bd4 {[%clk 0:01:35.1]} 18. Bd3
{[%clk 0:02:02.9]} 18... Bxe3+ {[%clk 0:01:14.1]} 19. Qxe3 {[%clk 0:02:04.8]}
19... Qc5 {[%clk 0:00:38.6]} 20. Qxc5 {[%clk 0:01:43.1]} 20... dxc5 {[%clk
0:00:40.5]} 21. Kf2 {[%clk 0:01:31.7]} 21... Kf8 {[%clk 0:00:34.2]} 22. Ke3
{[%clk 0:01:27.9]} 22... Ke8 {[%clk 0:00:32.5]} 23. f5 {[%clk 0:01:04.6]} 23...
Kd8 {[%clk 0:00:30.1]} 24. fxg6 {[%clk 0:01:04.3]} 24... hxg6 {[%clk 0:00:31.7]}
25. Kf4 {[%clk 0:00:52.4]} 25... Rxb7 {[%clk 0:00:22.2]} 26. Rxb7 {[%clk
0:00:54.3]} 26... Kc8 {[%clk 0:00:23.2]} 27. Rb1 {[%clk 0:00:53.7]} 27... Kc7
{[%clk 0:00:21.9]} 28. Kg5 {[%clk 0:00:46.9]} 28... Nb6 {[%clk 0:00:19.9]} 29.
a5 {[%clk 0:00:32]} 29... Nxd5 {[%clk 0:00:18.6]} 30. Be4 {[%clk 0:00:32.9]}
30... Rd8 {[%clk 0:00:20.1]} 31. Rd1 {[%clk 0:00:31.3]} 31... f6+ {[%clk
0:00:18.7]} 32. Kh6 {[%clk 0:00:29.1]} 32... e6 {[%clk 0:00:18.4]} 33. c4 {[%clk
0:00:28.3]} 33... Nf4 {[%clk 0:00:14]} 34. Rxd8 {[%clk 0:00:28.7]} 34... Kxd8
{[%clk 0:00:13.6]} 35. Bxg6 {[%clk 0:00:30.2]} 35... Ke7 {[%clk 0:00:13.2]} 36.
Be4 {[%clk 0:00:29.4]} 36... f5 {[%clk 0:00:13]} 37. Bb7 {[%clk 0:00:30.1]}
37... Nd3 {[%clk 0:00:07.4]} 38. Bxa6 {[%clk 0:00:30.3]} 38... Ne5 {[%clk
0:00:08.6]} 39. Bb5 {[%clk 0:00:22.8]} 39... Kd6 {[%clk 0:00:07.6]} 40. h4
{[%clk 0:00:21.3]} 40... Nxf3 {[%clk 0:00:06.5]} 41. h5 {[%clk 0:00:22.3]} 41...
Ne5 {[%clk 0:00:05.9]} 42. Kg5 {[%clk 0:00:22.7]} 42... Nf7+ {[%clk 0:00:05.9]}
43. Kf6 {[%clk 0:00:23.5]} 43... Nh6 {[%clk 0:00:05.9]} 44. Kg6 {[%clk
0:00:24.2]} 44... Ng4 {[%clk 0:00:06]} 45. Kg5 {[%clk 0:00:23.7]} 45... Ne5
{[%clk 0:00:04.8]} 46. Be8 {[%clk 0:00:23.5]} 46... Ke7 {[%clk 0:00:04.3]} 47.
Bg6 {[%clk 0:00:20.4]} 47... Nc6 {[%clk 0:00:04.9]} 48. a6 {[%clk 0:00:20.5]}
48... Kf8 {[%clk 0:00:04.7]} 49. Bxf5 {[%clk 0:00:20.3]} 49... exf5 {[%clk
0:00:04.6]} 50. Kxf5 {[%clk 0:00:22.2]} 50... Kg7 {[%clk 0:00:04.8]} 51. Ke6
{[%clk 0:00:22.7]} 51... Na7 {[%clk 0:00:02.1]} 52. Kd6 {[%clk 0:00:22.4]} 52...
Kh6 {[%clk 0:00:04]} 53. Kxc5 {[%clk 0:00:23.3]} 53... Kxh5 {[%clk 0:00:05.9]}
54. Kb6 {[%clk 0:00:24.1]} 54... Nc8+ {[%clk 0:00:07.1]} 55. Kc7 {[%clk
0:00:24.5]} 55... Ne7 {[%clk 0:00:08.4]} 56. a7 {[%clk 0:00:24.4]} 1-0